Workbook

Sheet Sheet1
A1: 153.3224398 | B1: 40.32740126 | C1: =$K$1*A1+$K$2 -> 57.99120345 | D1: =SQRT(ABS(B1-C1)) -> 4.202832639 | F1: 140 | G1: =$K$1*F1+$K$2 -> 52.98871395 | H1: gap | I1: 기울기 | J1: w1 | K1: 0.3754934967 | L1: m1(+)
A2: 158.5182041 | B2: 47.61949389 | C2: =$K$1*A2+$K$2 -> 59.94217916 | D2: =SQRT(ABS(B2-C2)) -> 3.510368253 | F2: =F1+$H$2 -> 140.5 | G2: =$K$1*F2+$K$2 -> 53.1764607 | H2: 0.5 | I2: 절편 | J2: w2 | K2: 0.419624418 | L2: m2(-)
A3: 154.8088914 | B3: 39.69651971 | C3: 58.54935637 | D3: 4.341985337 | F3: =F2+$H$2 -> 141 | G3: 53.36420745
A4: 162.1843547 | B4: 46.23633305 | C4: 61.31879485 | D4: 3.883614528 | F4: 141.5 | G4: 53.55195419 | J4: sum | K4: 352.7705947
A5: 160.39702 | B5: 49.16224576 | C5: 60.6476623 | D5: 3.389014096 | F5: 142 | G5: 53.73970094 | J5: sum0 | K5: =SUM(D:D) -> 352.7705947
A6: 175.8124727 | B6: 59.04013926 | C6: 66.43606455 | D6: 2.719545051 | F6: 142.5 | G6: 53.92744769
A7: 163.0647308 | B7: 47.9439691 | C7: 61.64937035 | D7: 3.702080665 | F7: 143 | G7: 54.11519444
A8: 169.9537057 | B8: 54.35153892 | C8: 64.23613563 | D8: 3.143977849 | F8: 143.5 | G8: 54.30294119
A9: 171.5223509 | B9: 53.803287 | C9: 64.82515171 | D9: 3.319919384 | F9: 144 | G9: 54.49068794
A10: 166.7509979 | B10: 53.35332578 | C10: 63.03353969 | D10: 3.111304214 | F10: 144.5 | G10: 54.67843468
A11: 178.8063794 | B11: 62.11106636 | C11: 67.56025706 | D11: 2.334350166 | F11: 145 | G11: 54.86618143
A12: 167.2828406 | B12: 54.3576412 | C12: 63.23324317 | D12: 2.979194852 | F12: 145.5 | G12: 55.05392818
A13: 168.3732373 | B13: 51.70268058 | C13: 63.64268002 | D13: 3.455430427 | F13: 146 | G13: 55.24167493
A14: 176.4070219 | B14: 55.06735962 | C14: 66.6593139 | D14: 3.404695916 | F14: 146.5 | G14: 55.42942168
A15: 157.6930171 | B15: 40.69428577 | C15: 59.63232682 | D15: 4.351785961 | F15: 147 | G15: 55.61716843
A16: 175.1043767 | B16: 56.45780711 | C16: 66.1701791 | D16: 3.11646787 | F16: 147.5 | G16: 55.80491517
A17: 159.3432337 | B17: 46.16511553 | C17: 60.25197241 | D17: 3.75324618 | F17: 148 | G17: 55.99266192
A18: 160.3225368 | B18: 48.46696759 | C18: 60.61969436 | D18: 3.486076128 | F18: 148.5 | G18: 56.18040867
A19: 179.6025735 | B19: 62.58944803 | C19: 67.85922276 | D19: 2.29559899 | F19: 149 | G19: 56.36815542
A20: 162.319681 | B20: 51.50204974 | C20: 61.36960903 | D20: 3.141267148 | F20: 149.5 | G20: 56.55590217
A21: 164.544645 | B21: 47.62609331 | C21: 62.20506851 | D21: 3.818242422 | F21: 150 | G21: 56.74364892
A22: 179.5082849 | B22: 64.55359718 | C22: 67.823818 | D22: 1.808375188 | F22: 150.5 | G22: 56.93139566 | J22: 키 | K22: 몸무게
A23: 163.6317283 | B23: 48.99277848 | C23: 61.86227424 | D23: 3.587407944 | F23: 151 | G23: 57.11914241 | J23: 153 | K23: =$K$1*J23+$K$2 -> 57.87012941
A24: 150.7988709 | B24: 41.30428413 | C24: 57.04361975 | D24: 3.967283154 | F24: 151.5 | G24: 57.30688916 | J24: 160 | K24: =$K$1*J24+$K$2 -> 60.49858388
A25: 170.8085257 | B25: 53.18042919 | C25: 64.55711498 | D25: 3.3729343 | F25: 152 | G25: 57.49463591 | J25: 165 | K25: 62.37605137
A26: 175.4437584 | B26: 54.29995215 | C26: 66.29761471 | D26: 3.463764219 | F26: 152.5 | G26: 57.68238266 | J26: 170 | K26: 64.25351885
A27: 153.0959111 | B27: 41.34136996 | C27: 57.90614342 | D27: 4.069984454 | F27: 153 | G27: 57.87012941 | J27: 178 | K27: 67.25746682
A28: 170.3808135 | B28: 52.10803432 | C28: 64.39651183 | D28: 3.505492478 | F28: 153.5 | G28: 58.05787615
A29: 176.6846806 | B29: 59.01222794 | C29: 66.76357294 | D29: 2.784123739 | F29: 154 | G29: 58.2456229
A30: 165.0771993 | B30: 46.53650632 | C30: 62.40503922 | D30: 3.983532716 | F30: 154.5 | G30: 58.43336965
A31: 150.5293018 | B31: 35.48603697 | C31: 56.94239829 | D31: 4.632101177 | F31: 155 | G31: 58.6211164
A32: 153.8731259 | B32: 44.67180622 | C32: 58.19798251 | D32: 3.67779503 | F32: 155.5 | G32: 58.80886315
A33: 177.4416643 | B33: 61.41029642 | C33: 67.04781541 | D33: 2.374346014 | F33: 156 | G33: 58.9966099
A34: 165.8256 | B34: 51.03124493 | C34: 62.68605881 | D34: 3.413914743 | F34: 156.5 | G34: 59.18435664
A35: 162.6848298 | B35: 50.21433115 | C35: 61.50672002 | D35: 3.360414985 | F35: 157 | G35: 59.37210339
A36: 162.0521754 | B36: 50.71146582 | C36: 61.2691624 | D36: 3.249260929 | F36: 157.5 | G36: 59.55985014
A37: 150.0667816 | B37: 41.41307911 | C37: 56.76872499 | D37: 3.91862806 | F37: 158 | G37: 59.74759689
A38: 150.5747026 | B38: 41.54838361 | C38: 56.95944601 | D38: 3.925692602 | F38: 158.5 | G38: 59.93534364
A39: 155.534175 | B39: 44.61698114 | C39: 58.82169565 | D39: 3.768914235 | F39: 159 | G39: 60.12309039
A40: 158.6630791 | B40: 44.54222245 | C40: 59.9965788 | D40: 3.931202913 | F40: 159.5 | G40: 60.31083713
A41: 158.2660872 | B41: 47.46095416 | C41: 59.84751089 | D41: 3.519454039 | F41: 160 | G41: 60.49858388
A42: 152.6789993 | B42: 44.0542215 | C42: 57.74959573 | D42: 3.700726176 | F42: 160.5 | G42: 60.68633063
A43: 159.2677671 | B43: 44.47680898 | C43: 60.22363518 | D43: 3.968227086 | F43: 161 | G43: 60.87407738
A44: 175.4197043 | B44: 60.29337451 | C44: 66.28858257 | D44: 2.448511398 | F44: 161.5 | G44: 61.06182413
A45: 157.4643856 | B45: 46.16316159 | C45: 59.54647718 | D45: 3.658321417 | F45: 162 | G45: 61.24957088
A46: 160.9617323 | B46: 47.39919812 | C46: 60.8597081 | D46: 3.668856767 | F46: 162.5 | G46: 61.43731762
A47: 163.2947856 | B47: 46.33583067 | C47: 61.73575446 | D47: 3.924273664 | F47: 163 | G47: 61.62506437
A48: 177.0046681 | B48: 55.49151412 | C48: 66.88372617 | D48: 3.375235111 | F48: 163.5 | G48: 61.81281112
A49: 159.8052317 | B49: 48.78579143 | C49: 60.42544965 | D49: 3.411694333 | F49: 164 | G49: 62.00055787
A50: 164.7148937 | B50: 47.99866174 | C50: 62.2689958 | D50: 3.77760957 | F50: 164.5 | G50: 62.18830462
A51: 161.2431604 | B51: 46.86285847 | C51: 60.96538252 | D51: 3.755332747 | F51: 165 | G51: 62.37605137
A52: 166.0693377 | B52: 51.61694644 | C52: 62.77758073 | D52: 3.340753552 | F52: 165.5 | G52: 62.56379811
A53: 159.15093 | B53: 43.74172647 | C53: 60.17976364 | D53: 4.05438493 | F53: 166 | G53: 62.75154486
A54: 168.6992258 | B54: 49.65447641 | C54: 63.76508659 | D54: 3.756409213 | F54: 166.5 | G54: 62.93929161
A55: 165.959571 | B55: 48.91601366 | C55: 62.73636404 | D55: 3.717573184 | F55: 167 | G55: 63.12703836
A56: 168.2338303 | B56: 49.39754491 | C56: 63.59033363 | D56: 3.767331777 | F56: 167.5 | G56: 63.31478511
A57: 176.0825354 | B57: 57.46481065 | C57: 66.53747133 | D57: 3.012085768 | F57: 168 | G57: 63.50253186
A58: 178.1442207 | B58: 55.93026227 | C58: 67.31162076 | D58: 3.373626904 | F58: 168.5 | G58: 63.6902786
A59: 164.5094472 | B59: 49.66817826 | C59: 62.19185199 | D59: 3.538880292 | F59: 169 | G59: 63.87802535
A60: 157.0870131 | B60: 47.53017919 | C60: 59.40477626 | D60: 3.445953724 | F60: 169.5 | G60: 64.0657721
A61: 152.8998524 | B61: 42.29869469 | C61: 57.83252463 | D61: 3.941298002 | F61: 170 | G61: 64.25351885
A62: 153.7481207 | B62: 42.35313278 | C62: 58.15104385 | D62: 3.974658611 | F62: 170.5 | G62: 64.4412656
A63: 163.1769687 | B63: 44.38798374 | C63: 61.69151497 | D63: 4.159751342 | F63: 171 | G63: 64.62901235
A64: 159.1865033 | B64: 47.79136838 | C64: 60.19312116 | D64: 3.521612242 | F64: 171.5 | G64: 64.81675909
A65: 178.6214358 | B65: 59.7302119 | C65: 67.49081191 | D65: 2.785785349 | F65: 172 | G65: 65.00450584
A66: 176.6779178 | B66: 53.67863477 | C66: =$K$1*A66+$K$2 -> 66.76103357 | D66: =SQRT(ABS(B66-C66)) -> 3.616959884 | F66: 172.5 | G66: =$K$1*F66+$K$2 -> 65.19225259
A67: 172.4650651 | B67: 52.4097367 | C67: 65.17913477 | D67: 3.573429455 | F67: =F66+$H$2 -> 173 | G67: 65.37999934
A68: 179.058668 | B68: 62.03771794 | C68: 67.65498978 | D68: 2.370078445 | F68: 173.5 | G68: 65.56774609
A69: 173.9845902 | B69: 55.38823149 | C69: 65.74970655 | D69: 3.218924518 | F69: 174 | G69: 65.75549284
A70: 163.5693544 | B70: 45.56311671 | C70: 61.83885325 | D70: 4.034319837 | F70: 174.5 | G70: 65.94323958
A71: 162.0954162 | B71: 48.34506819 | C71: 61.28539903 | D71: 3.597267135 | F71: 175 | G71: 66.13098633
A72: 154.1986245 | B72: 42.26159807 | C72: 58.32020511 | D72: 4.007319184 | F72: 175.5 | G72: 66.31873308
A73: 176.4453703 | B73: 54.46086155 | C73: 66.67371349 | D73: 3.494689104 | F73: 176 | G73: 66.50647983
A74: 151.5269226 | B74: 42.08357885 | C74: 57.31699842 | D74: 3.903001354 | F74: 176.5 | G74: 66.69422658
A75: 166.0084516 | B75: 49.07663598 | C75: 62.75471838 | D75: 3.698389162 | F75: 177 | G75: 66.88197333
A76: 150.0702399 | B76: 36.48062835 | C76: 56.77002354 | D76: 4.504375117 | F76: 177.5 | G76: 67.06972007
A77: 175.1785809 | B77: 54.28767605 | C77: 66.19804229 | D77: 3.451139847 | F77: 178 | G77: 67.25746682
A78: 163.1238645 | B78: 46.09759152 | C78: 61.6715747 | D78: 3.946388625 | F78: 178.5 | G78: 67.44521357
A79: 177.363351 | B79: 59.57493526 | C79: 67.01840926 | D79: 2.728273081 | F79: 179 | G79: 67.63296032
A80: 165.1061314 | B80: 48.01037568 | C80: 62.41590303 | D80: 3.795461415 | F80: 179.5 | G80: 67.82070707
A81: 156.0777766 | B81: 43.71122493 | C81: 59.02581449 | D81: 3.913385945 | F81: 180 | G81: 68.00845382
A82: 161.4021724 | B82: 48.20432079 | C82: 61.02509052 | D82: 3.580610245 | F82: 180.5 | G82: 68.19620056
A83: 163.5380441 | B83: 45.78719055 | C83: 61.82709643 | D83: 4.004985129 | F83: 181 | G83: 68.38394731
A84: 175.7076663 | B84: 59.43922306 | C84: 66.39671042 | D84: 2.637704941 | F84: 181.5 | G84: 68.57169406
A85: 176.755262 | B85: 62.47953023 | C85: 66.79007581 | D85: 2.076185342 | F85: 182 | G85: 68.75944081
A86: 154.8725885 | B86: 43.68797508 | C86: 58.57327422 | D86: 3.858147111 | F86: 182.5 | G86: 68.94718756
A87: 171.1292106 | B87: 56.92044392 | C87: 64.67753008 | D87: 2.785154602 | F87: 183 | G87: 69.13493431
A88: 151.2449616 | B88: 36.39255251 | C88: 57.21112391 | D88: 4.56273727 | F88: 183.5 | G88: 69.32268105
A89: 171.542092 | B89: 54.48744226 | C89: 64.83256435 | D89: 3.216383388 | F89: 184 | G89: 69.5104278
A90: 152.5146049 | B90: 43.92273234 | C90: 57.68786671 | D90: 3.710139401 | F90: 184.5 | G90: 69.69817455
A91: 160.9522802 | B91: 43.05879676 | C91: 60.85615889 | D91: 4.218691992 | F91: 185 | G91: 69.8859213
A92: 159.0568846 | B92: 41.87662198 | C92: 60.1444502 | D92: 4.274087999 | F92: 185.5 | G92: 70.07366805
A93: 176.4880711 | B93: 53.87161414 | C93: 66.68974735 | D93: 3.58024206 | F93: 186 | G93: 70.2614148
A94: 178.7764639 | B94: 59.39543005 | C94: 67.54902396 | D94: 2.855449861 | F94: 186.5 | G94: 70.44916154
A95: 173.0414325 | B95: 53.75229958 | C95: 65.39555697 | D95: 3.412221768 | F95: 187 | G95: 70.63690829
A96: 169.4510525 | B96: 50.29746708 | C96: 64.04739265 | D96: 3.708089207 | F96: 187.5 | G96: 70.82465504
A97: 164.3617541 | B97: 51.49386946 | C97: 62.13639417 | D97: 3.262288262 | F97: 188 | G97: 71.01240179
A98: 168.5751575 | B98: 50.5229819 | C98: 63.71849977 | D98: 3.632563539 | F98: 188.5 | G98: 71.20014854
A99: 161.6495973 | B99: 48.58118292 | C99: 61.11799694 | D99: 3.540736367 | F99: 189 | G99: 71.38789529
A100: 160.7038325 | B100: 43.57139705 | C100: 60.76286841 | D100: 4.146259924 | F100: 189.5 | G100: 71.57564203
